fUSD/lending_fUSD_20260322
["ID","MTS","AMOUNT","RATE_DAILY","PERIOD"]
[408725989,1774174231973,-151.0,0.00012821,2]
[408725990,1774174231986,-155.541,0.00012827,2]
[408725991,1774174231999,-500.0,0.00012828,2]
[408725992,1774174232010,-460.85676801,0.00012828,2]
[408725993,1774174232019,-500.0,0.00012828,2]
[408725994,1774174232033,-500.0,0.00012828,2]
[408725995,1774174232042,-500.0,0.00012828,2]
[408725996,1774174232051,-500.0,0.00012828,2]
[408725997,1774174232060,-500.0,0.00012828,2]
[408725998,1774174232071,-500.0,0.00012828,2]
[408725999,1774174232081,-621.35845434,0.00012828,2]
[408726000,1774174232091,-500.0,0.00012828,2]
[408726001,1774174232101,-500.0,0.00012828,2]
[408726002,1774174232111,-500.0,0.00012828,2]
[408726003,1774174232121,-500.0,0.00012828,2]
[408726004,1774174232137,-500.0,0.00012828,2]
[408726005,1774174232147,-500.0,0.00012828,2]
[408726006,1774174232157,-500.0,0.00012828,2]
[408726007,1774174232166,-500.0,0.00012828,2]
[408726008,1774174232177,-176.11470658,0.00012828,2]
[408726009,1774174232187,-500.0,0.00012828,2]
[408726010,1774174232196,-468.30120589,0.00012828,2]
[408726011,1774174232207,-450.0,0.00012828,2]
[408726012,1774174232217,-500.0,0.00012828,2]
[408726013,1774174232226,-281.42648128,0.00012828,2]
[408726014,1774174232236,-500.0,0.00012828,2]
[408726015,1774174232245,-500.0,0.00012828,2]
[408726016,1774174232255,-500.0,0.00012828,2]
[408726017,1774174232264,-500.0,0.00012828,2]
[408726018,1774174232274,-500.0,0.00012828,2]
[408726019,1774174232283,-500.0,0.00012828,2]
[408726020,1774174232293,-500.0,0.00012828,2]
[408726021,1774174232302,-197.36658827,0.00012828,2]
[408726022,1774174232312,-150.0,0.00012828,2]
[408726023,1774174232321,-300.0,0.00012828,2]
[408726024,1774174232331,-397.10725959,0.00012828,2]
[408726025,1774174232341,-372.79309859,0.00012828,2]
[408726026,1774174232352,-500.0,0.00012828,2]
[408726027,1774174232361,-500.0,0.00012828,2]
[408726028,1774174232371,-500.0,0.00012828,2]
[408726029,1774174232380,-500.0,0.00012828,2]
[408726030,1774174232391,-500.0,0.00012828,2]
[408726031,1774174232401,-500.0,0.00012828,2]
[408726032,1774174232410,-500.0,0.00012828,2]
[408726033,1774174232420,-500.0,0.00012828,2]
[408726034,1774174232429,-500.0,0.00012828,2]
[408726035,1774174232440,-500.0,0.00012828,2]
[408726036,1774174232450,-500.0,0.00012828,2]
[408726037,1774174232459,-500.0,0.00012828,2]
[408726038,1774174232468,-164.410088,0.00012828,2]
[408726039,1774174232477,-500.0,0.00012828,2]
[408726040,1774174232487,-2027.8313693,0.00012828,2]
[408726041,1774174232496,-2027.8313693,0.00012828,2]
[408726042,1774174232505,-2027.8313693,0.00012828,2]
[408726043,1774174232515,-2027.8313693,0.00012828,2]
[408726044,1774174232524,-2027.8313693,0.00012828,2]
[408726045,1774174232534,-2027.8313693,0.00012828,2]
[408726046,1774174232544,-2027.8313693,0.00012828,2]
[408726047,1774174232554,-2027.8313693,0.00012828,2]
[408726048,1774174232563,-2027.8313693,0.00012828,2]
[408726049,1774174232573,-2027.8313693,0.00012828,2]
[408726050,1774174232582,-2027.8313693,0.00012828,2]
[408726051,1774174232592,-2027.8313693,0.00012828,2]
[408726052,1774174232601,-2027.8313693,0.00012828,2]
[408726053,1774174232611,-2027.8313693,0.00012828,2]
[408726054,1774174232621,-2027.8313693,0.00012828,2]
[408726055,1774174232631,-2027.8313693,0.00012828,2]
[408726056,1774174232641,-2027.8313693,0.00012828,2]
[408726057,1774174232650,-2027.8313693,0.00012828,2]
[408726058,1774174232660,-2027.8313693,0.00012828,2]
[408726059,1774174232670,-2027.8313693,0.00012828,2]
[408726060,1774174232679,-2027.8313693,0.00012828,2]
[408726061,1774174232688,-2027.8313693,0.00012828,2]
[408726062,1774174232698,-2027.8313693,0.00012828,2]
[408726063,1774174232708,-2027.8313693,0.00012828,2]
[408726064,1774174232718,-2027.8313693,0.00012828,2]
[408726065,1774174232728,-2027.8313693,0.00012828,2]
[408726066,1774174232737,-2027.8313693,0.00012828,2]
[408726067,1774174232747,-2027.8313693,0.00012828,2]
[408726068,1774174232756,-2027.8313693,0.00012828,2]
[408726069,1774174232766,-2027.8313693,0.00012828,2]
[408726070,1774174232775,-2027.8313693,0.00012828,2]
[408726071,1774174232785,-2027.8313693,0.00012828,2]
[408726072,1774174232794,-2027.8313693,0.00012828,2]
[408726073,1774174232803,-2027.8313693,0.00012828,2]
[408726074,1774174232813,-2027.8313693,0.00012828,2]
[408726075,1774174232822,-2027.8313693,0.00012828,2]
[408726076,1774174232832,-2027.8313693,0.00012828,2]
[408726077,1774174232842,-2027.8313693,0.00012828,2]
[408726078,1774174232851,-2027.8313693,0.00012828,2]
[408726079,1774174232861,-2027.8313693,0.00012828,2]
[408726080,1774174232871,-2027.8313693,0.00012828,2]
[408726081,1774174232880,-2027.8313693,0.00012828,2]
[408726082,1774174232890,-2027.8313693,0.00012828,2]
[408726083,1774174232899,-2027.8313693,0.00012828,2]
[408726084,1774174232909,-2027.8313693,0.00012828,2]
[408726085,1774174232919,-2027.8313693,0.00012828,2]
[408726086,1774174232928,-2027.8313693,0.00012828,2]
[408726087,1774174232937,-2027.8313693,0.00012828,2]
[408726088,1774174232947,-2027.8313693,0.00012828,2]
[408726089,1774174232957,-2027.8313693,0.00012828,2]
[408726090,1774174232967,-2027.8313693,0.00012828,2]
[408726091,1774174232976,-2027.8313693,0.00012828,2]
[408726092,1774174232986,-2027.8313693,0.00012828,2]
[408726093,1774174232996,-2027.8313693,0.00012828,2]
[408726094,1774174233005,-2027.8313693,0.00012828,2]
[408726095,1774174233016,-2027.8313693,0.00012828,2]
[408726096,1774174233026,-2027.8313693,0.00012828,2]
[408726097,1774174233035,-2027.8313693,0.00012828,2]
[408726098,1774174233045,-2027.8313693,0.00012828,2]
[408726099,1774174233054,-2027.8313693,0.00012828,2]
[408726100,1774174233064,-2027.8313693,0.00012828,2]
[408726101,1774174233074,-2027.8313693,0.00012828,2]
[408726102,1774174233084,-2027.8313693,0.00012828,2]
[408726103,1774174233093,-2027.8313693,0.00012828,2]
[408726104,1774174233103,-500.0,0.00012828,2]
[408726105,1774174233114,-289.55047241,0.00012828,2]
[408726106,1774174233123,-1965.43655793,0.00012828,2]
[408726107,1774174233137,-1965.43655793,0.00012828,2]
[408726108,1774174233147,-1965.43655793,0.00012828,2]
[408726109,1774174233156,-1965.43655793,0.00012828,2]
[408726110,1774174233166,-1965.43655793,0.00012828,2]
[408726111,1774174233177,-1965.43655793,0.00012828,2]
[408726112,1774174233186,-1965.43655793,0.00012828,2]
[408726113,1774174233195,-1965.43655793,0.00012828,2]
[408726114,1774174233206,-1965.43655793,0.00012828,2]
[408726115,1774174233215,-1965.43655793,0.00012828,2]
[408726116,1774174233224,-1965.43655793,0.00012828,2]
[408726117,1774174233234,-1965.43655793,0.00012828,2]
[408726118,1774174233243,-1965.43655793,0.00012828,2]
[408726119,1774174233252,-1965.43655793,0.00012828,2]
[408726120,1774174233262,-1965.43655793,0.00012828,2]
[408726121,1774174233271,-1965.43655793,0.00012828,2]
[408726122,1774174233280,-1965.43655793,0.00012828,2]
[408726123,1774174233290,-1965.43655793,0.00012828,2]
[408726124,1774174233299,-1965.43655793,0.00012828,2]
[408726125,1774174233308,-1965.43655793,0.00012828,2]
[408726126,1774174233317,-1965.43655793,0.00012828,2]
[408726127,1774174233334,-1965.43655793,0.00012828,2]
[408726128,1774174233347,-1965.43655793,0.00012828,2]
[408726129,1774174233357,-1965.43655793,0.00012828,2]
[408726130,1774174233367,-1965.43655793,0.00012828,2]
[408726131,1774174233376,-1965.43655784,0.00012828,2]
[408726132,1774174233386,-32984.9071,0.00012829,2]
[408726133,1774174233396,-1000.0,0.00012829,2]
[408726134,1774174233406,-690398.72254491,0.00012829,2]
[408726135,1774174233423,-202549.36580891,0.00012829,2]
[408726136,1774174233434,-252180.92552708,0.00012829,2]
[408726137,1774174233445,-143658.75038591,0.00012829,2]
[408726138,1774174233457,-867.61452967,0.00012829,2]
[408726139,1774174233468,-6345.66958523,0.00012829,2]
[408726140,1774174233480,-11237.48396771,0.00012829,2]
[408726141,1774174233491,-9412.5,0.00012829,2]
[408726142,1774174233510,-1097.89225197,0.00012829,2]
[408726143,1774174233521,-255.51004428,0.00012829,2]
[408726144,1774174233532,-403.47950337,0.00012829,2]
[408726158,1774174237889,-234.36773884,0.00012729,2]
[408726159,1774174237899,-471.91666557,0.00012829,2]
[408726160,1774174237930,-1139870.20644233,0.00012829,2]
[408726186,1774174239807,-41249.96274306,0.00012829,2]
[408726187,1774174239817,-3974.1,0.00012829,2]
[408726188,1774174239827,-999.99,0.00012829,2]
[408726189,1774174239836,-8605.04,0.00012829,2]
[408726190,1774174239846,-4999.99,0.00012829,2]
[408726191,1774174239855,-9350.46,0.00012829,2]
[408726192,1774174239864,-150.99,0.00012829,2]
[408726193,1774174239874,-150.99,0.00012829,2]
[408726194,1774174239883,-500.0,0.00012829,2]
[408726195,1774174239892,-9999.99,0.00012873,2]
[408726196,1774174239901,-299.99,0.00012873,2]
[408726197,1774174239910,-500.0,0.00012873,2]
[408726198,1774174239919,-500.0,0.00012873,2]
[408726199,1774174239928,-500.0,0.00012873,2]
[408726200,1774174239938,-500.0,0.00012873,2]
[408726201,1774174239947,-500.0,0.00012873,2]
[408726202,1774174239956,-500.0,0.00012873,2]
[408726203,1774174239965,-500.0,0.00012873,2]
[408726204,1774174239975,-1300.0,0.000129,4]
[408726205,1774174239984,-34651.65,0.00012932,2]
[408726206,1774174239994,-500.0,0.00013103,2]
[408726207,1774174240003,-1392.80340637,0.0001311,2]
[408726208,1774174240012,-1483.69,0.00013166,2]
[408726209,1774174240022,-80000.08,0.00013221,2]
[408726210,1774174240032,-1587.93340582,0.00013277,2]
[408726211,1774174240042,-500.0,0.00013377,2]
[408726212,1774174240051,-5158.10106561,0.00013399,2]
[408726213,1774174240060,-1000.0,0.00013421,2]
[408726214,1774174240070,-1000.0,0.00013421,2]
[408726215,1774174240079,-1000.0,0.00013421,2]
[408726216,1774174240089,-1000.0,0.00013421,2]
[408726217,1774174240098,-1000.0,0.00013421,2]
[408726218,1774174240107,-3240.0,0.00013425,2]
[408726219,1774174240117,-150.81800731,0.00013499,2]
[408726220,1774174240128,-237.6846,0.000135,2]
[408726221,1774174240143,-150.0,0.000135,2]
[408726222,1774174240152,-2000.0,0.00013591,2]
[408726223,1774174240162,-4899.8829,0.00013599,2]
[408726224,1774174240171,-500.0,0.00013651,2]
[408726225,1774174240182,-500.0,0.00013698,2]
[408726226,1774174240191,-500.0,0.00013698,2]
[408726227,1774174240200,-500.0,0.00013698,2]
[408726228,1774174240210,-500.0,0.00013698,2]
[408726229,1774174240220,-500.0,0.00013698,2]
[408726230,1774174240229,-500.0,0.00013698,2]
[408726231,1774174240238,-500.0,0.00013698,2]
[408726232,1774174240248,-500.0,0.00013698,2]
[408726233,1774174240257,-500.0,0.00013698,2]
[408726234,1774174240266,-500.0,0.00013698,2]
[408726235,1774174240275,-473.5787903,0.00013698,2]
[408726236,1774174240284,-500.0,0.00013698,2]
[408726237,1774174240294,-500.0,0.00013698,2]
[408726238,1774174240303,-485.30482118,0.00013698,2]
[408726239,1774174240312,-500.0,0.00013698,2]
[408726240,1774174240322,-364.57678169,0.00013698,2]
[408726241,1774174240331,-500.0,0.00013698,2]
[408726242,1774174240341,-500.0,0.00013698,2]
[408726243,1774174240350,-525.9,0.00013698,2]
[408726244,1774174240360,-3124.99,0.00013698,2]
[408726245,1774174240369,-3124.99,0.00013698,2]
[408726246,1774174240379,-3124.99,0.00013698,2]
[408726247,1774174240389,-3124.99,0.00013698,2]
[408726248,1774174240398,-3124.99,0.00013698,2]
[408726249,1774174240408,-3124.99,0.00013698,2]
[408726250,1774174240418,-3124.99,0.00013698,2]
[408726251,1774174240427,-3124.99,0.00013698,2]
[408726252,1774174240437,-3124.99,0.00013698,2]
[408726253,1774174240446,-3124.99,0.00013698,2]
[408726254,1774174240455,-3124.99,0.00013698,2]
[408726255,1774174240465,-200.0,0.00013699,2]
[408726256,1774174240474,-500.0,0.00013699,2]
[408726257,1774174240484,-160.37320944,0.00013699,2]
[408726258,1774174240493,-500.0,0.00013699,2]
[408726259,1774174240503,-440.36,0.000137,2]
[408726260,1774174240512,-1946.57,0.000137,2]
[408726261,1774174240521,-1158.62,0.000137,2]
[408726262,1774174240530,-1314.92,0.000137,2]
[408726263,1774174240539,-1002.28,0.000137,2]
[408726264,1774174240548,-845.96,0.000137,2]
[408726265,1774174240558,-250.0,0.00013755,2]
[408726266,1774174240567,-500.0,0.00013755,2]
[408726267,1774174240576,-500.0,0.00013755,2]
[408726268,1774174240585,-500.0,0.00013755,2]
[408726269,1774174240594,-500.0,0.00013755,2]
[408726270,1774174240603,-500.0,0.00013755,2]
[408726271,1774174240613,-195.0,0.00013755,2]
[408726272,1774174240622,-195.0,0.00013755,2]
[408726273,1774174240631,-195.0,0.00013755,2]
[408726274,1774174240640,-195.0,0.00013755,2]
[408726275,1774174240650,-195.0,0.00013755,2]
[408726276,1774174240659,-600.0,0.00013755,2]
[408726277,1774174240669,-600.0,0.00013755,2]
[408726278,1774174240678,-600.0,0.00013755,2]
[408726279,1774174240688,-600.0,0.00013755,2]
[408726280,1774174240697,-600.0,0.00013755,2]
[408726281,1774174240707,-300.0,0.00013755,2]
[408726282,1774174240716,-300.0,0.00013755,2]
[408726283,1774174240725,-300.0,0.00013755,2]
[408726284,1774174240734,-300.0,0.00013755,2]
[408726285,1774174240744,-300.0,0.00013755,2]
[408726286,1774174240753,-300.23645254,0.00013755,2]
[408726287,1774174240762,-250.0,0.00013755,2]
[408726288,1774174240771,-200.0,0.00013755,2]
[408726289,1774174240781,-150.06792128,0.00013755,2]
[408726290,1774174240790,-2500.0,0.00013755,2]
[408726291,1774174240799,-2500.0,0.00013755,2]
[408726292,1774174240809,-1153.47513913,0.00013755,2]
[408726293,1774174240819,-255.0,0.00013923,2]
[408726294,1774174240828,-500.0,0.00013925,2]
[408726295,1774174240837,-1000.0,0.00013968,2]
[408726296,1774174240847,-510.25846451,0.00013968,2]
[408726297,1774174240856,-1500.0,0.00013968,2]
[408726298,1774174240865,-277.04038587,0.00013968,2]
[408726299,1774174240874,-1500.0,0.00013968,2]
[408726300,1774174240887,-519.0,0.00014,2]
[408726301,1774174240898,-1680.0,0.00014,2]
[408726302,1774174240907,-500.0,0.00014031,2]
[408726303,1774174240916,-8925.64372889,0.00014081,2]
[408726304,1774174240925,-155.0,0.0001411,2]
[408726305,1774174240934,-60000.0,0.00014115,2]
[408726306,1774174240944,-21010.34940563,0.0001418,2]
[408726307,1774174240953,-500.0,0.00014199,2]
[408726308,1774174240963,-256.86603976,0.00014473,2]
[408726309,1774174240972,-229.01223273,0.00014516,2]
[408726310,1774174240982,-2009.38949621,0.00014516,2]
[408726311,1774174240992,-278.11,0.00014723,2]
[408726312,1774174241001,-150.49957673,0.000149,2]
[408726313,1774174241011,-250.0,0.00015,2]
[408726314,1774174241021,-698.79,0.000151,2]
[408726315,1774174241031,-2000.0,0.00015101,2]
[408726316,1774174241041,-433.0,0.00015115,2]
[408726317,1774174241049,-3124.99,0.00015205,2]
[408726318,1774174241058,-10000.0,0.00015205,2]
[408726319,1774174241068,-155.0,0.00015392,2]
[408726320,1774174241077,-2351.0,0.000154,2]
[408726321,1774174241086,-8925.64372889,0.00015434,2]
[408726322,1774174241096,-1065.99,0.00015569,2]
[408726323,1774174241105,-589.14291018,0.00015569,2]
[408726324,1774174241115,-21010.34940563,0.00015633,2]
[408726325,1774174241124,-500.0,0.00015773,2]
[408726326,1774174241134,-500.0,0.00015773,2]
[408726327,1774174241147,-500.0,0.00015773,2]
[408726328,1774174241156,-500.0,0.00015773,2]
[408726329,1774174241165,-500.0,0.00015773,2]
[408726330,1774174241174,-500.0,0.00015773,2]
[408726331,1774174241185,-500.55967201,0.00015773,2]
[408726332,1774174241194,-500.0,0.00015773,2]
[408726333,1774174241203,-500.0,0.00015773,2]
[408726334,1774174241212,-500.0,0.00015773,2]
[408726335,1774174241222,-500.0,0.00015773,2]
[408726336,1774174241231,-500.0,0.00015773,2]
[408726337,1774174241240,-500.0,0.00015773,2]
[408726338,1774174241248,-390.12270077,0.00015773,2]
[408726339,1774174241257,-500.0,0.00015773,2]
[408726340,1774174241266,-500.0,0.00015773,2]
[408726341,1774174241275,-500.44177829,0.00015773,2]
[408726342,1774174241284,-399.41987419,0.0001579,2]
[408726343,1774174241293,-3124.99,0.00015799,2]
[408726344,1774174241302,-3124.99,0.00015799,2]
[408726345,1774174241312,-3124.99,0.00015799,2]
[408726346,1774174241320,-3124.99,0.00015799,2]
[408726347,1774174241329,-3124.99,0.00015799,2]
[408726348,1774174241337,-3124.99,0.00015799,2]
[408726349,1774174241346,-1500000.0,0.000158,2]
[408726350,1774174241355,-554.45714043,0.000158,2]
[408726351,1774174241364,-1700.0,0.000159,5]
[408726352,1774174241373,-31720.00690847,0.000159,2]
[408726353,1774174241381,-2000.0,0.000159,2]
[408726354,1774174241390,-250.0,0.00015963,2]
[408726355,1774174241400,-2000.0,0.00016,2]
[408726356,1774174241409,-16692.7159903,0.00016013,2]
[408726357,1774174241419,-1158.62,0.000161,2]
[408726358,1774174241428,-1314.92,0.000161,2]
[408726359,1774174241437,-2000.0,0.000161,2]
[408726360,1774174241447,-9999.99,0.00016116,2]
[408726361,1774174241456,-1002.28,0.000162,2]
[408726362,1774174241465,-845.96,0.000162,2]
[408726363,1774174241475,-2000.0,0.000162,2]
[408726364,1774174241484,-440.36,0.000163,2]
[408726365,1774174241494,-1946.57,0.000163,2]
[408726366,1774174241504,-2000.0,0.000163,2]
[408726367,1774174241514,-1000.0,0.00016321,2]
[408726368,1774174241523,-1000.0,0.00016321,2]
[408726369,1774174241532,-1000.0,0.00016321,2]
[408726370,1774174241720,-1000.0,0.00016321,2]
[408726371,1774174241730,-1000.0,0.00016321,2]
[408726372,1774174241739,-505.99225948,0.00016321,2]
[408726373,1774174241749,-500.67270798,0.00016321,2]
[408726374,1774174241758,-501.4021552,0.00016321,2]
[408726375,1774174241769,-713.64434561,0.00016321,2]
[408726376,1774174241778,-998.52273734,0.00016321,2]
[408726377,1774174241787,-1000.0,0.00016321,2]
[408726378,1774174241796,-1000.0,0.00016321,2]
[408726379,1774174241806,-2000.0,0.000164,2]
[408726380,1774174241815,-736.0,0.00016423,2]
[408726381,1774174241824,-2000.0,0.000165,2]
[408726382,1774174241833,-2000.0,0.000166,2]
[408726383,1774174241843,-2000.0,0.00016612,2]
[408726384,1774174241852,-160.0,0.00016638,2]
[408726385,1774174241861,-979.16666667,0.00016638,2]
[408726386,1774174241870,-2000.0,0.000167,2]
[408726387,1774174241879,-166.82,0.00016712,2]
[408726388,1774174241889,-2000.0,0.000168,2]
[408726389,1774174241898,-1573.03260881,0.00016868,2]
[408726390,1774174241907,-759.99072283,0.00016868,2]
[408726391,1774174241916,-1500.0,0.00016868,2]
[408726392,1774174241926,-222.68518983,0.00016868,2]
[408726393,1774174241935,-2000.0,0.000169,2]
[408726394,1774174241945,-3292.0,0.0001694,2]
[408726395,1774174241955,-1114.3428,0.00017,2]
[408726396,1774174241964,-1195.23419118,0.00017,30]
[408726397,1774174241973,-21010.34940563,0.00017085,2]
[408726398,1774174241982,-205.0,0.00017113,2]
[408726399,1774174241992,-243.0,0.00017251,2]
[408726400,1774174242001,-292.555841,0.00017307,7]
[408726401,1774174242012,-444.735803,0.00017307,7]
[408726402,1774174242021,-243.947773,0.00017307,7]
[408726403,1774174242031,-1568.0,0.0001734,2]
[408726404,1774174242040,-1500.0,0.00017416,2]
[408726405,1774174242050,-288.0,0.00017437,2]
[408726406,1774174242059,-153.2132,0.000176,2]
[408726407,1774174242069,-1568.0,0.0001766,2]
[408726408,1774174242079,-1252.0,0.00017833,2]
[408726409,1774174242088,-155.0,0.00017958,2]
[408726410,1774174242098,-2000.0,0.00018122,2]
[408726411,1774174242108,-343.585166,0.00018261,7]
[408726412,1774174242118,-21010.34940563,0.00018538,2]
[408726413,1774174242128,-4609.0,0.00018634,2]
[408726414,1774174242140,-845.96,0.000188,2]
[408726415,1774174242150,-167.714096,0.00018816,7]
[408726416,1774174242160,-487.403325,0.00018816,7]
[408726417,1774174242171,-3724.6483922,0.00018941,2]
[408726418,1774174242182,-1852.42,0.00018974,2]
[408726419,1774174242192,-1158.62,0.00019,2]
[408726420,1774174242202,-1314.92,0.00019,2]
[408726421,1774174242213,-151.0,0.00019178,2]
[408726422,1774174242223,-20279.91,0.00019178,2]
[408726423,1774174242233,-150.4393191,0.00019178,2]
[408726424,1774174242242,-3124.99,0.00019199,2]
[408726425,1774174242252,-79963.1,0.000192,2]
[408726426,1774174242262,-2129.0,0.00019371,2]
[408726427,1774174242272,-1049.03838609,0.00019446,12]
[408726428,1774174242281,-831.0813922,0.00019595,2]
[408726429,1774174242291,-166.66,0.0002027,2]
[408726430,1774174242301,-440.36,0.000203,2]
[408726431,1774174242311,-1946.57,0.000203,2]
[408726432,1774174242320,-1002.28,0.000203,2]
[408726433,1774174242330,-150.0,0.000203,2]
[408726434,1774174242339,-442.75,0.00020435,2]
[408726435,1774174242348,-6453.0,0.00020497,2]
[408726436,1774174242358,-1568.0,0.0002068,2]
[408726437,1774174242369,-2000.0,0.000208,2]
[408726438,1774174242379,-166.66,0.00020939,2]
[408726439,1774174242388,-150.0,0.00021035,2]
[408726440,1774174242398,-284.934172,0.00021037,2]
[408726441,1774174242407,-358.0,0.00021038,2]
[408726442,1774174242416,-186.40036,0.00021086,2]
[408726443,1774174242426,-150.0,0.0002148,2]
[408726445,1774174242436,-1938.00943329,0.0002148,2]
[408726446,1774174242445,-150.0,0.0002148,2]
[408726447,1774174242455,-2939.95031507,0.0002148,2]
[408726448,1774174242466,-150.0,0.0002148,2]
[408726449,1774174242476,-4667.32714779,0.0002148,2]
[408726451,1774174242485,-166.66,0.00021609,2]
[408726453,1774174242495,-156.4953,0.000218,2]
[408726454,1774174242505,-500.0,0.00021808,2]
[408726456,1774174242515,-3055.64,0.00021918,2]
[408726457,1774174242525,-200.0,0.00022,2]
[408726458,1774174242534,-200.0,0.00022,2]
[408726459,1774174242543,-200.0,0.00022,2]
[408726460,1774174242553,-200.0,0.00022,2]
[408726461,1774174242563,-200.0,0.00022,2]
[408726462,1774174242572,-924.80475936,0.00022,2]
[408726463,1774174242582,-2485.52,0.00022,30]
[408726464,1774174242593,-233.0,0.00022,2]
[408726465,1774174242602,-160.0,0.00022178,2]
[408726466,1774174242612,-2000.0,0.000222,2]
[408726467,1774174242622,-519.0,0.0002225,9]
[408726468,1774174242632,-278.11,0.00022253,2]
[408726469,1774174242641,-661.0,0.00022257,10]
[408726470,1774174242651,-613.0,0.00022257,10]
[408726471,1774174242660,-166.66,0.00022278,2]
[408726472,1774174242670,-79963.1,0.000224,7]
[408726473,1774174242679,-845.96,0.000224,7]
[408726474,1774174242689,-2000.0,0.00022403,2]
[408726475,1774174242699,-5472.0,0.00022547,2]
[408726476,1774174242709,-166.82,0.00022603,2]
[408726477,1774174242719,-168.04,0.00022802,2]
[408726478,1774174242728,-166.66,0.00022947,2]
[408726479,1774174242738,-233.0,0.00023,2]
[408726480,1774174242747,-1158.62,0.000235,7]
[408726481,1774174242757,-1314.92,0.000235,7]
[408726482,1774174242767,-6424.04,0.00023599,2]
[408726483,1774174242777,-1002.28,0.000236,7]
[408726484,1774174242786,-166.66,0.00023616,2]
[408726485,1774174242796,-440.36,0.000238,7]
[408726486,1774174242805,-1946.57,0.000238,2]
[408726487,1774174242815,-233.0,0.00024,2]
[408726488,1774174242824,-803.65,0.00024016,2]
[408726489,1774174242833,-1205.73,0.00024322,2]
[408726490,1774174242843,-2000.0,0.000245,2]
[408726491,1774174242853,-171.81,0.00024616,2]
[408726492,1774174242864,-874.41,0.00024658,2]
[408726493,1774174242874,-150.0,0.00024658,2]
[408726494,1774174242883,-1038.57,0.00024819,2]
[408726495,1774174242893,-396.09,0.00024819,2]
[408726496,1774174242903,-3124.99,0.00024899,2]
[408726497,1774174242912,-3124.99,0.00024899,2]
[408726498,1774174242922,-3124.99,0.00024899,2]
[408726499,1774174242931,-3124.99,0.00024899,2]
[408726500,1774174242941,-3125.11,0.00024899,2]
[408726501,1774174242951,-13738.5736834,0.000249,3]
[408726502,1774174242961,-233.0,0.00025,2]
[408726504,1774174242970,-620.9,0.00025596,2]
[408726506,1774174242980,-150.0,0.0002589,2]
[408726507,1774174242991,-2000.0,0.000259,2]
[408726508,1774174243000,-79963.1,0.000259,7]
[408726509,1774174243010,-159.8477,0.000259,2]
[408726510,1774174243020,-233.0,0.00026,2]
[408726511,1774174243029,-1139.24724587,0.00026091,39]
[408726512,1774174243039,-861.23,0.0002643,2]
[408726513,1774174243048,-742.85,0.0002643,2]
[408726514,1774174243058,-341.31,0.0002643,2]
[408726515,1774174243068,-308.47240642,0.00026603,2]
[408726516,1774174243077,-167.14954,0.00026663,14]
[408726517,1774174243087,-279.936022,0.00026849,14]
[408726518,1774174243097,-800.0,0.00026986,120]
[408726519,1774174243106,-800.0,0.00026986,120]
[408726520,1774174243116,-800.0,0.00026986,120]
[408726521,1774174243126,-244.4,0.00027,2]
[408726522,1774174243138,-150.0,0.00027185,2]
[408726523,1774174243148,-1041.67,0.00027396,2]
[408726524,1774174243157,-500.0,0.00027396,2]
[408726525,1774174243167,-500.0,0.00027396,2]
[408726526,1774174243178,-500.0,0.00027396,2]
[408726527,1774174243187,-521.60337023,0.00027396,2]
[408726528,1774174243196,-500.0,0.00027396,2]
[408726529,1774174243207,-500.0,0.00027396,2]
[408726530,1774174243217,-500.0,0.00027396,2]
[408726531,1774174243226,-500.0,0.00027396,2]
[408726532,1774174243235,-493.84764022,0.00027396,2]